bitfinex/quotes_ETHUSD_20230110
["timestamp","ask_amount","ask_price","bid_price","bid_amount"]
[1673347817556,0.34712579,1332.9,1332.8,76.37322034]
[1673347817939,0.34712579,1332.9,1332.8,77.49375611]
[1673347818594,11.1826,1333.1,1332.8,77.49375611]
[1673347818595,9.4896,1333.1,1332.9,0.69425157]
[1673347818814,0.066,1333.1,1333.0,17.80408567]
[1673347819138,0.066,1333.2,1333.0,10.5477427]
[1673347819309,45.57651271,1333.3,1333.1,1.85974892]
[1673347819662,45.57651271,1333.3,1333.0,20.41297344]
[1673347819663,13.10724965,1333.3,1333.0,20.41297344]
[1673347819832,3.56173013,1333.3,1333.1,1.86138376]
[1673347820048,3.49573013,1333.3,1333.1,42.86138376]
[1673347820262,3.49573013,1333.3,1333.1,41.066]
[1673347820493,3.49573013,1333.3,1333.1,0.066]
[1673347820702,3.49573013,1333.3,1333.0,16.18956378]
[1673347821028,3.49573013,1333.3,1333.1,16.86347324]
[1673347821237,3.49573013,1333.3,1333.1,27.06809]
[1673347821411,3.49573013,1333.3,1333.1,19.56688]
[1673347821609,3.49573013,1333.3,1333.1,7.56688]
[1673347821818,3.49573013,1333.3,1333.1,0.066]
[1673347822051,3.49573013,1333.3,1333.0,20.50072334]
[1673347822255,3.49573013,1333.3,1333.1,38.86133664]
[1673347822492,1.8086932,1333.3,1333.1,47.35937697]
[1673347822716,1.8086932,1333.3,1333.1,44.56731]
[1673347822866,1.8086932,1333.3,1333.1,37.066]
[1673347823075,1.8086932,1333.3,1333.1,2.85794326]
[1673347823292,1.8086932,1333.3,1333.1,2.5]
[1673347823768,1.8086932,1333.3,1333.1,18.5]
[1673347823948,1.8086932,1333.3,1333.1,18.566]
[1673347824351,1.8086932,1333.3,1333.2,43.50075]
[1673347824684,0.69191505,1333.3,1333.2,36.066]
[1673347825496,0.69191505,1333.3,1333.2,22.066]
[1673347826450,3.47725535,1333.4,1333.2,22.066]
[1673347826660,3.41125535,1333.4,1333.2,22.066]
[1673347826882,3.41125535,1333.4,1333.3,21.0]
[1673347827069,3.41125535,1333.4,1333.3,21.066]
[1673347827841,3.41125535,1333.4,1333.3,33.066]
[1673347828165,3.41125535,1333.4,1333.3,0.066]
[1673347828379,3.41125535,1333.4,1333.2,0.066]
[1673347828585,3.41125535,1333.4,1333.1,10.66276]
[1673347828903,3.41125535,1333.4,1333.2,25.0]
[1673347829113,3.41125535,1333.4,1333.2,25.066]
[1673347829690,3.76045535,1333.4,1333.3,34.0]
[1673347829901,2.06745535,1333.4,1333.3,34.066]
[1673347830115,2.06745535,1333.4,1333.3,16.68316262]
[1673347830116,0.03121842,1333.4,1333.3,16.68316262]
[1673347831271,0.03121842,1333.4,1333.3,9.18298262]
[1673347831686,0.03121842,1333.4,1333.3,1.68280262]
[1673347831950,0.03121842,1333.4,1333.2,22.56716]
[1673347832123,0.03121842,1333.4,1333.2,15.0667]
[1673347832532,0.03121842,1333.4,1333.3,28.0]
[1673347832892,0.03121842,1333.4,1333.3,35.56618]
[1673347835162,0.03121842,1333.4,1333.3,43.06636]
[1673347835372,0.03121842,1333.4,1333.3,38.99430218]
[1673347835613,0.03121842,1333.4,1333.3,28.066]
[1673347836211,0.03121842,1333.4,1333.3,0.066]
[1673347836419,0.03121842,1333.4,1333.2,42.0]
[1673347836420,15.03045842,1333.4,1333.2,42.0]
[1673347836680,15.09645842,1333.4,1333.2,42.066]
[1673347837265,7.59683842,1333.4,1333.3,31.0]
[1673347837510,7.59683842,1333.4,1333.3,31.066]
[1673347837675,7.59683842,1333.4,1333.3,31.064]
[1673347837889,7.59683842,1333.4,1333.3,31.066]
[1673347838165,0.09721842,1333.4,1333.3,31.066]
[1673347838311,0.03121842,1333.4,1333.3,31.066]
[1673347843403,0.03121842,1333.4,1333.3,56.67314]
[1673347844457,0.03121842,1333.4,1333.3,41.67278]
[1673347845617,0.03321842,1333.4,1333.3,41.67078]
[1673347845776,0.03121842,1333.4,1333.3,41.67278]
[1673347846347,0.03121842,1333.4,1333.3,49.17296]
[1673347846521,0.03121842,1333.4,1333.3,56.67314]
[1673347847389,0.03121842,1333.4,1333.3,18.17296]
[1673347847813,0.12613017,1333.5,1333.4,2.5]
[1673347848042,0.12613017,1333.5,1333.4,6.42846611]
[1673347848238,0.12613017,1333.5,1333.4,21.49370611]
[1673347848463,0.12613017,1333.5,1333.4,64.49370611]
[1673347848838,0.12613017,1333.5,1333.4,71.99332611]
[1673347849046,0.12613017,1333.5,1333.4,50.99332611]
[1673347850983,0.12613017,1333.5,1333.4,43.49370611]
[1673347852776,0.12613017,1333.5,1333.4,43.49170611]
[1673347853092,0.12613017,1333.5,1333.4,43.49370611]
[1673347853838,0.12613017,1333.5,1333.4,40.99370611]
[1673347854038,7.62519017,1333.5,1333.4,22.066]
[1673347854216,16.8772871,1333.5,1333.4,22.066]
[1673347854432,16.8772871,1333.5,1333.4,18.066]
[1673347854976,16.8772871,1333.5,1333.4,17.066]
[1673347855224,29.17769373,1333.5,1333.4,17.066]
[1673347855387,29.17769373,1333.5,1333.4,17.064]
[1673347855563,29.17769373,1333.5,1333.4,17.066]
[1673347855769,31.42707631,1333.5,1333.4,17.066]
[1673347856242,23.92801631,1333.5,1333.4,17.066]
[1673347857362,16.42895631,1333.5,1333.4,17.066]
[1673347858819,33.53770002,1333.5,1333.4,17.066]
[1673347859030,26.03864002,1333.5,1333.4,17.066]
[1673347859510,27.72382835,1333.5,1333.4,17.066]
[1673347860241,26.03864002,1333.5,1333.4,17.066]
[1673347860456,27.72394669,1333.5,1333.4,17.066]
[1673347860610,12.72582669,1333.5,1333.4,17.066]
[1673347860821,17.97550411,1333.5,1333.4,17.066]
[1673347861134,10.47644411,1333.5,1333.4,17.066]
[1673347861372,20.22488669,1333.5,1333.4,17.066]
[1673347862881,36.34942824,1333.5,1333.4,17.066]
[1673347863074,34.10004566,1333.5,1333.4,0.066]
[1673347863286,34.10004566,1333.5,1333.2,8.0694]
[1673347863456,9.18547389,1333.4,1333.2,8.0694]
[1673347863668,9.25147389,1333.4,1333.2,34.0694]
[1673347864352,11.49902574,1333.4,1333.3,18.0]
[1673347864559,1.75166389,1333.4,1333.3,18.066]
[1673347864775,1.75166389,1333.4,1333.3,28.17312]
[1673347864776,1.68566389,1333.4,1333.3,28.17312]
[1673347864946,1.68566389,1333.4,1333.3,18.066]
[1673347865383,11.43283574,1333.4,1333.3,36.066]
[1673347865567,11.49883574,1333.4,1333.3,36.066]
[1673347865776,3.99921574,1333.4,1333.3,36.066]
[1673347866001,1.68566389,1333.4,1333.3,24.066]
[1673347866211,1.68566389,1333.4,1333.3,25.066]
[1673347866875,1.68566389,1333.4,1333.3,26.066]
[1673347867655,1.68566389,1333.4,1333.3,30.066]
[1673347869246,3.37866389,1333.4,1333.3,30.066]
[1673347869574,3.37866389,1333.4,1333.3,15.066]
[1673347870224,3.37866389,1333.4,1333.3,15.06389916]
[1673347870436,3.37866389,1333.4,1333.3,15.06589916]
[1673347872045,4.50242306,1333.4,1333.3,15.06589916]
[1673347875366,2.81675917,1333.4,1333.3,30.06625916]
[1673347875576,1.693,1333.4,1333.3,22.56607916]
[1673347875786,2.81670688,1333.4,1333.3,22.56607916]
[1673347875981,2.81670691,1333.4,1333.3,22.56607916]
[1673347876202,1.693,1333.4,1333.3,15.06589916]
[1673347876424,2.81665877,1333.4,1333.3,15.06589916]
[1673347876621,1.693,1333.4,1333.3,15.06589916]
[1673347876814,2.81670688,1333.4,1333.3,15.06589916]
[1673347877041,2.81670685,1333.4,1333.3,15.06589916]
[1673347877260,1.693,1333.4,1333.3,30.06625916]
[1673347877447,2.81670284,1333.4,1333.3,22.56607916]
[1673347877650,2.81670536,1333.4,1333.3,15.06589916]
[1673347877865,1.693,1333.4,1333.3,15.06589916]
[1673347879013,3.56179406,1333.5,1333.3,30.06625916]
[1673347879174,3.49579406,1333.5,1333.3,34.62327008]
[1673347879337,1.12370391,1333.4,1333.3,27.12309008]
[1673347879551,1.12370441,1333.4,1333.3,12.12309008]
[1673347879762,3.56179406,1333.5,1333.3,12.12309008]
[1673347880005,1.12370628,1333.4,1333.3,7.56607916]
[1673347880329,1.12366641,1333.4,1333.3,51.56607916]
[1673347880505,3.56179406,1333.5,1333.3,51.56607916]
[1673347880727,4.61949353,1333.5,1333.3,51.56607916]
[1673347881383,4.61949607,1333.5,1333.3,7.56607916]
[1673347881761,4.61949607,1333.5,1333.4,21.0]
[1673347882005,4.61949607,1333.5,1333.4,21.06589916]
[1673347884273,4.65189352,1333.5,1333.4,21.06589916]
[1673347884536,30.5226897,1333.5,1333.4,0.06589916]
[1673347884744,30.5886897,1333.5,1333.2,8.06929916]
[1673347884954,2.80943535,1333.4,1333.2,8.06929916]
[1673347885124,10.30911535,1333.4,1333.2,8.06929916]
[1673347885327,1.12377414,1333.3,1333.2,8.06929916]
[1673347885663,10.37512407,1333.4,1333.3,1.11673913]
[1673347886269,2.87544407,1333.4,1333.3,1.11673913]
[1673347886585,2.80944407,1333.4,1333.3,1.11673913]
[1673347886748,2.80944407,1333.4,1333.3,9.11673913]
[1673347886927,2.80944407,1333.4,1333.3,9.18263829]
[1673347887349,2.80944407,1333.4,1333.3,1.18263829]
[1673347887570,2.80944407,1333.4,1333.3,1.11673913]
[1673347888105,2.80944407,1333.4,1333.3,9.11673913]
[1673347888276,2.80944407,1333.4,1333.3,9.18263829]
[1673347888491,2.80944407,1333.4,1333.3,21.18263829]
[1673347888734,1.12378286,1333.4,1333.3,21.18263829]
[1673347889123,2.81678286,1333.4,1333.3,21.18263829]
[1673347889331,4.50244407,1333.4,1333.3,21.18263829]
[1673347892210,3.37866121,1333.4,1333.3,21.18263829]
[1673347893323,4.50318511,1333.4,1333.3,21.18263829]
[1673347893534,3.37866121,1333.4,1333.3,21.18263829]
[1673347894740,4.50323956,1333.4,1333.3,21.18263829]
[1673347895653,3.38066121,1333.4,1333.3,21.18063829]
[1673347895873,3.37866121,1333.4,1333.3,21.18263829]
[1673347897057,4.5032294,1333.4,1333.3,21.18263829]
[1673347898127,3.37866121,1333.4,1333.3,21.18263829]
[1673347898482,4.50321744,1333.4,1333.3,21.18263829]
[1673347906369,4.50321744,1333.4,1333.3,28.68281829]
[1673347906847,4.50321744,1333.4,1333.3,36.18299829]
[1673347907362,4.50321744,1333.4,1333.3,36.92739739]
[1673347908062,4.50321744,1333.4,1333.3,29.42721739]
[1673347909256,2.81755623,1333.4,1333.3,29.42721739]
[1673347909883,4.50321744,1333.4,1333.3,29.42721739]
[1673347910259,2.81755623,1333.4,1333.3,29.42721739]
[1673347911755,2.81755623,1333.4,1333.3,36.92739739]
[1673347914353,2.81755623,1333.4,1333.3,39.71904465]
[1673347914819,1.693,1333.4,1333.3,39.71904465]
[1673347915027,1.693,1333.4,1333.3,48.33934843]
[1673347915206,1.693,1333.4,1333.3,40.83916843]
[1673347915416,1.693,1333.4,1333.3,40.83716843]
[1673347915417,1.695,1333.4,1333.3,40.83716843]
[1673347915649,1.693,1333.4,1333.3,40.83916843]
[1673347916559,1.693,1333.4,1333.3,39.71904465]
[1673347917001,1.693,1333.4,1333.3,55.71904465]
[1673347918900,2.81755623,1333.4,1333.3,37.92703739]
[1673347922175,2.81755623,1333.4,1333.3,45.42721739]
[1673347923498,2.81755623,1333.4,1333.3,9.42721739]
[1673347925523,1.693,1333.4,1333.3,9.42721739]
[1673347926258,2.81729924,1333.4,1333.3,9.42721739]
[1673347926468,1.693,1333.4,1333.3,9.42721739]
[1673347926889,2.81735553,1333.4,1333.3,9.42721739]
[1673347927111,1.693,1333.4,1333.3,9.42721739]
[1673347927569,2.81736027,1333.4,1333.3,9.42721739]
[1673347927724,1.693,1333.4,1333.3,9.42721739]
[1673347927934,1.693,1333.4,1333.3,45.42721739]
[1673347928191,2.81736038,1333.4,1333.3,45.42721739]
[1673347928406,1.693,1333.4,1333.3,45.42721739]
[1673347928570,2.81735298,1333.4,1333.3,45.42721739]
[1673347928776,1.693,1333.4,1333.3,45.42721739]
[1673347929524,2.81734474,1333.4,1333.3,48.21881669]
[1673347929881,2.81734492,1333.4,1333.3,48.21881669]
[1673347930091,1.693,1333.4,1333.3,48.21881669]
[1673347930562,3.94170608,1333.4,1333.3,48.21881669]
[1673347930778,3.94170586,1333.4,1333.3,48.21881669]
[1673347930981,2.81735304,1333.4,1333.3,48.21881669]
[1673347931195,3.94171092,1333.4,1333.3,45.42721739]
[1673347931406,3.94172473,1333.4,1333.3,45.42721739]
[1673347931651,3.94171726,1333.4,1333.3,55.71899771]
[1673347931895,2.81735304,1333.4,1333.3,55.71899771]
[1673347932069,3.9417173,1333.4,1333.3,55.71899771]
[1673347932286,5.62743604,1333.4,1333.3,36.06589916]
[1673347932502,10.57337621,1333.4,1333.3,12.06589916]
[1673347932722,16.81691046,1333.4,1333.3,0.06294704]
[1673347932885,16.81691046,1333.4,1333.2,0.06494704]
[1673347933095,16.81691046,1333.4,1333.1,13.81847082]
[1673347933096,1.693,1333.3,1333.1,13.81847082]
[1673347933310,1.677,1333.2,1333.1,4.18507082]
[1673347933631,1.677,1333.2,1333.1,5.98143838]
[1673347933827,1.677,1333.2,1333.1,4.92626164]
[1673347934042,1.677,1333.2,1333.1,33.98143838]
[1673347934247,1.677,1333.2,1333.1,48.83827679]
[1673347935455,1.677,1333.2,1333.1,47.71815301]
[1673347935937,1.677,1333.2,1333.1,55.21946301]
[1673347936993,1.677,1333.2,1333.1,56.33958679]
[1673347937409,1.677,1333.2,1333.1,52.21946301]
[1673347938446,1.677,1333.2,1333.1,52.16946301]
[1673347939662,1.679,1333.2,1333.1,52.16746301]
[1673347939964,1.677,1333.2,1333.1,52.16946301]
[1673347941411,1.677,1333.2,1333.1,59.67077301]
[1673347942968,4.81388292,1333.4,1333.3,1.42499572]
[1673347943178,8.12766742,1333.4,1333.3,1.42499572]
[1673347943393,6.50688292,1333.4,1333.3,8.92517572]
[1673347943602,7.06984935,1333.4,1333.3,1.48994276]
[1673347943860,7.06984935,1333.4,1333.3,1.42499572]
[1673347944075,8.1937268,1333.4,1333.3,1.42499572]
[1673347945521,8.1937268,1333.4,1333.3,8.92517572]
[1673347945732,8.1937268,1333.4,1333.3,8.99012276]
[1673347946137,8.1937268,1333.4,1333.3,1.48994276]
[1673347946368,8.1937268,1333.4,1333.3,1.42499572]
[1673347950116,8.1937268,1333.4,1333.3,2.42499572]
[1673347954355,6.5007268,1333.4,1333.3,2.42499572]
[1673347955339,4.8139423,1333.4,1333.3,2.42499572]
[1673347955646,4.7479423,1333.4,1333.3,2.42499572]
[1673347955962,6.4347268,1333.4,1333.3,2.42499572]
[1673347956176,6.5007268,1333.4,1333.3,2.42499572]
[1673347958541,5.37684935,1333.4,1333.3,2.42499572]
[1673347962110,7.6244012,1333.4,1333.3,2.42499572]
[1673347962799,11.42206184,1333.4,1333.3,2.42499572]
[1673347965222,18.92168184,1333.4,1333.3,2.42499572]
[1673347966221,17.23489734,1333.4,1333.3,2.42499572]
[1673347966564,18.92136128,1333.4,1333.3,2.42499572]
[1673347966780,11.42174128,1333.4,1333.3,2.42499572]
[1673347967811,9.73527734,1333.4,1333.3,2.42499572]
[1673347968547,11.42190895,1333.4,1333.3,2.42499572]
[1673347969796,9.73527734,1333.4,1333.3,2.42499572]
[1673347971731,12.54700556,1333.4,1333.3,2.42499572]
[1673347972049,9.73527734,1333.4,1333.3,2.42499572]
[1673347972577,20.04662556,1333.4,1333.3,2.42499572]
[1673347976395,20.04662556,1333.4,1333.3,2.42295891]
[1673347979461,21.73962556,1333.4,1333.3,2.42295891]
[1673347980764,19.49207371,1333.4,1333.3,2.42295891]
[1673347981413,14.24202817,1333.4,1333.3,2.42295891]
[1673347983539,11.43029995,1333.4,1333.3,2.42295891]
[1673347983916,13.11741317,1333.4,1333.3,2.42295891]
[1673347984282,11.43029995,1333.4,1333.3,2.42295891]
[1673347986588,11.43029995,1333.4,1333.3,9.92313891]
[1673347986745,2.87745654,1333.4,1333.3,17.48826595]
[1673347986959,2.81145654,1333.4,1333.3,17.48826595]
[1673347987198,2.81145654,1333.4,1333.3,9.98808595]
[1673347988590,3.9361324,1333.4,1333.3,2.48790595]
[1673347988740,3.93572954,1333.4,1333.3,9.92313891]
[1673347988953,1.12435304,1333.4,1333.3,9.98808595]
[1673347989165,3.93572562,1333.4,1333.3,9.98808595]
[1673347989373,2.24888745,1333.4,1333.3,9.98808595]
[1673347989637,2.24888745,1333.4,1333.3,26.8495626]
[1673347989638,1.12435304,1333.4,1333.3,26.8495626]
[1673347990031,2.24883063,1333.4,1333.3,26.8495626]
[1673347990242,1.12435304,1333.4,1333.3,26.8495626]
[1673347991281,1.12435304,1333.4,1333.3,19.3493826]
[1673347993333,1.12435304,1333.4,1333.3,22.14637524]
[1673347993714,1.12635304,1333.4,1333.3,29.64455524]
[1673347993903,1.12435304,1333.4,1333.3,29.64655524]
[1673347994381,1.12435304,1333.4,1333.3,22.14637524]
[1673347997603,1.12435304,1333.4,1333.3,20.28525859]
[1673347998027,1.12435304,1333.4,1333.3,22.14630605]
[1673347998253,1.12435304,1333.4,1333.3,22.14630615]
[1673347999005,1.12435304,1333.4,1333.3,20.28525859]
[1673347999319,1.12435304,1333.4,1333.3,17.48826595]
[1673347999687,1.12435304,1333.4,1333.3,19.34929863]
[1673348000581,1.12435304,1333.4,1333.3,17.48826595]
[1673348000768,1.12435304,1333.4,1333.3,9.98808595]
[1673348000959,1.12348138,1333.4,1333.3,8.56512704]
[1673348001169,3.55490882,1333.5,1333.3,8.56512704]
[1673348001371,1.12342313,1333.4,1333.3,8.56512704]
[1673348001580,1.1234308,1333.4,1333.3,1.06494704]
[1673348001823,1.1234308,1333.4,1333.3,1.0]
[1673348002036,1.1234308,1333.4,1333.3,26.0]
[1673348002244,1.1234308,1333.4,1333.3,1.06494704]
[1673348002461,1.1234308,1333.4,1333.3,1.0]
[1673348002867,1.1234308,1333.4,1333.3,30.0]
[1673348003048,1.1234308,1333.4,1333.3,30.06494704]
[1673348003547,2.81020945,1333.4,1333.3,30.06494704]
[1673348003690,2.81020945,1333.4,1333.3,1.06494704]
[1673348003901,4.76896186,1333.4,1333.3,0.99635542]
[1673348006884,3.64553106,1333.4,1333.3,0.99635542]
[1673348008967,11.14515106,1333.4,1333.3,0.99635542]
[1673348009146,12.88815106,1333.4,1333.3,0.99635542]
[1673348009778,20.38777106,1333.4,1333.3,0.99635542]
[1673348010025,22.63734552,1333.4,1333.3,0.99635542]
[1673348010408,30.13696552,1333.4,1333.3,0.99635542]
[1673348011040,28.45018687,1333.4,1333.3,0.99635542]
[1673348012558,31.26191509,1333.4,1333.3,0.99635542]
[1673348013141,32.81000127,1333.4,1333.3,0.99635542]
[1673348013349,32.80722999,1333.4,1333.3,0.99635542]
[1673348013904,29.99827305,1333.4,1333.3,0.99635542]
[1673348014764,32.8072074,1333.4,1333.3,0.99635542]
[1673348016341,35.05365848,1333.4,1333.3,0.99635542]
[1673348016649,35.05364789,1333.4,1333.3,0.99635542]
[1673348017872,32.8072074,1333.4,1333.3,0.99635542]
[1673348018684,35.05332435,1333.4,1333.3,0.99635542]
[1673348020053,35.05057238,1333.4,1333.3,0.99635542]
[1673348020828,32.24163803,1333.4,1333.3,0.99635542]
[1673348021857,35.05057238,1333.4,1333.3,0.99635542]
[1673348022700,33.92571747,1333.4,1333.3,0.99635542]
[1673348026320,35.05057238,1333.4,1333.3,0.99635542]
[1673348026550,35.62987238,1333.4,1333.3,0.99635542]
[1673348027959,35.28057238,1333.4,1333.3,0.99635542]
[1673348033512,38.79548623,1333.4,1333.3,0.99635542]
[1673348033668,40.82078623,1333.4,1333.3,0.99635542]
[1673348039228,39.14378623,1333.4,1333.3,0.99635542]
[1673348040125,39.14378623,1333.4,1333.3,0.9937125]
[1673348042283,32.26682108,1333.4,1333.3,0.9937125]
[1673348042436,35.07469681,1333.4,1333.3,0.9937125]
[1673348042886,32.26682108,1333.4,1333.3,0.9937125]
[1673348045102,39.14378623,1333.4,1333.3,0.9937125]
[1673348046061,35.64089495,1333.4,1333.3,0.9937125]
[1673348046434,39.14378623,1333.4,1333.3,0.9937125]
[1673348048562,35.64089495,1333.4,1333.3,0.9937125]
[1673348048790,39.14378623,1333.4,1333.3,0.9937125]
[1673348054525,38.79448623,1333.4,1333.3,0.9937125]
[1673348057791,35.42041236,1333.4,1333.3,0.9937125]
[1673348058001,39.35683187,1333.4,1333.3,0.9937125]
[1673348058241,39.72383187,1333.4,1333.0,18.32394704]
[1673348058569,26.43795369,1333.1,1333.0,18.32394704]
[1673348058733,26.43795369,1333.1,1333.0,0.06494704]
[1673348058734,24.81794354,1333.1,1333.0,0.06494704]
[1673348058948,27.62796046,1333.1,1332.8,0.5629]
[1673348059162,7.50243,1332.9,1332.8,20.5629]
[1673348059375,7.50243,1332.9,1332.8,20.62784704]
[1673348059376,17.88094889,1332.9,1332.8,20.62784704]
[1673348059609,16.7569057,1332.9,1332.8,20.62784704]
[1673348059812,16.7569057,1332.9,1332.8,0.62784704]
[1673348060030,10.37859968,1332.9,1332.8,0.5629]
[1673348060222,8.69255398,1332.9,1332.8,0.5629]
[1673348060428,10.37859968,1332.9,1332.8,0.5629]
[1673348060645,2.87616968,1332.9,1332.8,0.5629]
[1673348060825,2.81016968,1332.9,1332.8,0.5629]
[1673348061036,1.12412398,1332.9,1332.8,0.5629]
[1673348064085,1.12412398,1332.9,1332.7,8.59468332]
[1673348064299,1.12412398,1332.9,1332.7,11.24144325]
[1673348064549,1.12412398,1332.9,1332.7,10.67854325]
[1673348064766,1.12412398,1332.9,1332.7,18.18206325]
[1673348067341,1.12412398,1332.9,1332.7,8.03178332]
[1673348067553,1.12412398,1332.8,1332.7,8.03178332]
[1673348067992,8.62712398,1332.8,1332.7,8.03178332]
[1673348068232,8.69312398,1332.8,1332.7,0.13828332]
[1673348068547,8.69312398,1332.8,1332.7,0.07333628]
[1673348068548,1.19012398,1332.8,1332.7,0.07333628]
[1673348068875,1.12412398,1332.8,1332.7,0.07333628]
[1673348069493,2.81016968,1332.9,1332.7,0.07333628]
[1673348069707,1.12412398,1332.8,1332.7,0.07333628]
[1673348069871,2.81016968,1332.8,1332.7,0.07333628]
[1673348070081,1.12412398,1332.8,1332.7,0.07333628]
[1673348073698,5.54970634,1332.9,1332.7,7.57689628]
[1673348073699,6.67383032,1332.9,1332.7,7.57689628]
[1673348073907,6.67383032,1332.9,1332.7,7.64184332]
[1673348074955,6.67383032,1332.9,1332.7,0.13828332]
[1673348075129,6.67383032,1332.9,1332.7,0.07333628]
[1673348077253,3.79766064,1332.8,1332.7,0.07333628]
[1673348077475,4.92178462,1332.8,1332.7,0.07333628]
[1673348077814,3.79766064,1332.8,1332.7,0.07333628]
[1673348080224,3.79766064,1332.8,1332.7,0.06947253]
[1673348082829,4.92178462,1332.8,1332.7,0.06947253]
[1673348083001,3.79766064,1332.8,1332.7,0.06947253]
[1673348083156,4.92178462,1332.8,1332.7,0.06947253]
[1673348085054,6.50811365,1332.8,1332.7,0.06947253]
[1673348085264,6.57411365,1332.8,1332.7,0.06947253]
[1673348086622,14.07711365,1332.8,1332.7,0.06947253]
[1673348087704,38.77904891,1332.8,1332.7,0.06947253]
[1673348087924,38.23410659,1332.8,1332.7,0.06947253]
[1673348088215,35.42408967,1332.8,1332.7,0.06947253]
[1673348088445,2.5,1332.7,1332.6,0.0719824]
[1673348088652,45.62184066,1332.7,1332.6,0.0719824]
[1673348088886,45.68784066,1332.7,1332.6,0.0719824]
[1673348089414,43.18784066,1332.7,1332.6,0.0719824]
[1673348090417,40.38245787,1332.7,1332.6,0.0719824]
[1673348090954,43.18784066,1332.7,1332.6,0.0719824]
[1673348091273,40.38245787,1332.7,1332.6,0.0719824]
[1673348091499,43.18784066,1332.7,1332.6,0.0719824]
[1673348091741,42.63653443,1332.7,1332.6,8.24e-05]
[1673348091899,2.5,1332.6,1332.5,0.06902976]
[1673348092110,2.5,1332.5,1332.4,0.06443781]
[1673348092323,48.27033973,1332.5,1332.4,0.06443781]
[1673348092652,51.14117491,1332.5,1332.4,0.06443781]
[1673348092851,48.33633973,1332.5,1332.4,0.06443781]
[1673348093064,51.14117491,1332.5,1332.4,0.06443781]
[1673348093276,59.37653822,1332.5,1332.4,0.06443781]
[1673348093522,56.57170304,1332.5,1332.4,0.06443781]
[1673348093717,57.13412913,1332.5,1332.4,0.06443781]
[1673348094047,59.3766172,1332.5,1332.4,0.06443781]
[1673348094269,56.57178202,1332.5,1332.4,0.06443781]
[1673348094429,61.82712913,1332.5,1332.4,0.06443781]
[1673348097309,64.06707981,1332.5,1332.4,0.06443781]
[1673348099295,61.26224463,1332.5,1332.4,0.06443781]
[1673348099521,62.94152069,1332.5,1332.4,0.06443781]
[1673348099831,61.26224463,1332.5,1332.4,0.06443781]
[1673348100194,62.18932556,1332.5,1332.4,0.06443781]
[1673348100434,62.18932588,1332.5,1332.4,0.06443781]
[1673348100644,62.18932603,1332.5,1332.4,0.06443781]
[1673348100856,3.9850952,1332.5,1332.4,1.71743781]
[1673348101068,0.066,1332.6,1332.4,2.28053781]
[1673348101292,30.406,1332.9,1332.5,8.48211644]
[1673348101500,30.406,1332.9,1332.6,4.13001426]
[1673348101722,0.066,1332.9,1332.6,4.87364204]
[1673348101928,8.436,1333.0,1332.7,30.01424]
[1673348102171,8.436,1333.0,1332.7,0.06494704]
[1673348102379,8.436,1333.0,1332.8,7.503]
[1673348102696,8.436,1333.0,1332.8,9.06857704]
[1673348103388,12.23366064,1333.0,1332.8,9.06857704]
[1673348103919,8.436,1333.0,1332.8,9.06857704]
[1673348104114,8.436,1333.0,1332.8,16.57157704]
[1673348105745,8.436,1333.0,1332.8,24.07457704]
[1673348107099,8.436,1333.0,1332.8,25.76757704]
[1673348107598,22.91174968,1333.5,1332.9,4.19]
[1673348107599,40.83016535,1333.5,1332.9,4.19]
[1673348107810,30.52213017,1333.5,1333.1,1.679]
[1673348108005,30.52213017,1333.5,1333.2,15.0013]
[1673348108006,0.18213017,1333.5,1333.2,15.0013]
[1673348108371,3.79766064,1333.4,1333.2,15.06624704]
[1673348108761,3.79766064,1333.4,1333.2,7.56557704]
[1673348109489,2.42987182,1333.5,1333.2,8.97547982]
[1673348109685,3.92379081,1333.5,1333.2,25.66997982]
[1673348109894,5.60115188,1333.5,1333.2,25.66997982]
[1673348110171,5.65715188,1333.5,1333.2,25.66997982]
[1673348110317,3.97979081,1333.5,1333.2,25.66997982]
[1673348110528,3.92379081,1333.5,1333.2,25.66997982]
[1673348111403,3.92379081,1333.5,1333.2,18.16922982]
[1673348112938,3.92379081,1333.5,1333.2,25.66997982]
[1673348114456,3.92379081,1333.5,1333.2,18.16922982]
[1673348114671,0.12613017,1333.5,1333.2,25.66997982]
[1673348114828,0.12613017,1333.5,1333.2,18.16922982]
[1673348115039,0.12613017,1333.5,1333.2,17.81322982]
[1673348121995,0.12813017,1333.5,1333.2,17.81122982]
[1673348122330,0.12613017,1333.5,1333.2,17.81322982]
[1673348124536,0.12613017,1333.5,1333.2,10.31247982]
[1673348124860,7.62520017,1333.5,1333.2,10.31247982]
[1673348125080,7.68120017,1333.5,1333.2,10.31247982]
[1673348125234,0.18213017,1333.5,1333.2,10.31247982]
[1673348125629,0.12613017,1333.5,1333.2,10.31247982]
[1673348126972,0.12613017,1333.5,1333.2,17.81322982]
[1673348127585,0.12613017,1333.5,1333.4,1.341]
[1673348127763,0.12613017,1333.5,1333.4,24.38585065]
[1673348127967,0.12613017,1333.5,1333.4,52.78579769]
[1673348128231,0.12613017,1333.5,1333.4,56.34098628]
[1673348128386,0.13121842,1333.6,1333.4,44.78579769]
[1673348128606,0.11778179,1333.7,1333.6,1.7842]
[1673348128867,0.11778179,1333.7,1333.6,42.42289437]
[1673348129180,8.179e-05,1333.7,1333.6,79.23146919]
[1673348129348,8.179e-05,1333.7,1333.6,78.48784141]
[1673348129561,0.11778179,1333.8,1333.7,2.5]
[1673348129786,0.11778179,1333.8,1333.7,30.65133802]
[1673348130013,0.11778179,1333.8,1333.7,64.21421506]
[1673348130860,0.11778179,1333.8,1333.7,76.21421506]
[1673348131383,0.11778179,1333.8,1333.7,46.32790617]
[1673348131541,7.61515179,1333.8,1333.7,32.97990617]
[1673348131751,0.17378179,1333.8,1333.7,32.97990617]
[1673348131977,0.11778179,1333.8,1333.7,40.47783617]
[1673348132489,0.11778179,1333.8,1333.7,32.97990617]
[1673348132694,0.11778179,1333.8,1333.7,49.32176617]
[1673348132964,0.11778179,1333.8,1333.7,41.82383617]
[1673348133274,0.11778179,1333.8,1333.7,34.32590617]
[1673348133803,0.11778179,1333.8,1333.7,6.97990617]
[1673348133966,0.11778179,1333.8,1333.7,3.06494704]
[1673348134175,0.11778179,1333.8,1333.7,3.0]
[1673348134596,7.61515179,1333.8,1333.6,4.54414704]
[1673348134818,7.67115179,1333.8,1333.6,4.4792]
[1673348135804,0.17378179,1333.8,1333.6,4.4792]
[1673348136121,0.11778179,1333.8,1333.6,6.22839674]
[1673348136430,0.11778179,1333.8,1333.6,6.29334378]
[1673348137159,0.11778179,1333.8,1333.6,27.44084378]
[1673348137477,0.11778179,1333.8,1333.7,7.0]
[1673348137650,0.11778179,1333.8,1333.7,7.06494704]